fUST/lending_fUST_20250805
["ID","MTS","AMOUNT","RATE_DAILY","PERIOD"]
[377307670,1754328742490,-726.56869266,0.00029988,2]
[377307671,1754328742512,-500.0,0.00029988,2]
[377307672,1754328742533,-500.0,0.00029988,2]
[377307673,1754328742556,-726.56869266,0.00029988,2]
[377307674,1754328742577,-500.0,0.00029988,2]
[377307675,1754328742601,-726.56869266,0.00029988,2]
[377307676,1754328742622,-500.0,0.00029988,2]
[377307677,1754328742650,-726.56869266,0.00029988,2]
[377307678,1754328742673,-500.0,0.00029988,2]
[377307679,1754328742694,-500.0,0.00029988,2]
[377307680,1754328742719,-726.56869266,0.00029988,2]
[377307681,1754328742741,-553.85869625,0.00029988,2]
[377307682,1754328742763,-500.0,0.00029988,2]
[377307683,1754328742786,-500.0,0.00029988,2]
[377307684,1754328742818,-726.56869266,0.00029988,2]
[377307685,1754328742842,-726.56869266,0.00029988,2]
[377307686,1754328742863,-500.0,0.00029988,2]
[377307687,1754328742887,-500.0,0.00029988,2]
[377307688,1754328742908,-500.0,0.00029988,2]
[377307689,1754328742931,-726.56869266,0.00029988,2]
[377307690,1754328742953,-500.0,0.00029988,2]
[377307691,1754328742980,-726.56869266,0.00029988,2]
[377307692,1754328743003,-726.56869266,0.00029988,2]
[377307693,1754328743026,-500.0,0.00029988,2]
[377307694,1754328743049,-726.56869266,0.00029988,2]
[377307695,1754328743073,-726.56869266,0.00029988,2]
[377307696,1754328743095,-726.56869266,0.00029988,2]
[377307697,1754328743118,-726.56869266,0.00029988,2]
[377307698,1754328743144,-726.56869266,0.00029988,2]
[377307699,1754328743168,-726.56869266,0.00029988,2]
[377307700,1754328743190,-726.56869266,0.00029988,2]
[377307701,1754328743213,-726.56869266,0.00029988,2]
[377307702,1754328743235,-726.56869266,0.00029988,2]
[377307703,1754328743258,-726.56869266,0.00029988,2]
[377307704,1754328743281,-726.56869266,0.00029988,2]
[377307705,1754328743303,-726.56869266,0.00029988,2]
[377307706,1754328743326,-726.56869266,0.00029988,2]
[377307707,1754328743349,-726.56869266,0.00029988,2]
[377307708,1754328743371,-726.56869266,0.00029988,2]
[377307709,1754328743395,-726.56869266,0.00029988,2]
[377307710,1754328743417,-726.56869266,0.00029988,2]
[377307711,1754328743439,-586.69754397,0.00029988,2]
[377307712,1754328743463,-726.56869266,0.00029988,2]
[377307713,1754328743484,-586.69754397,0.00029988,2]
[377307714,1754328743632,-726.56869266,0.00029988,2]
[377307715,1754328743656,-586.69754397,0.00029988,2]
[377307716,1754328743677,-586.69754397,0.00029988,2]
[377307717,1754328743700,-726.56869266,0.00029988,2]
[377307718,1754328743722,-586.69754397,0.00029988,2]
[377307719,1754328743745,-726.56869266,0.00029988,2]
[377307720,1754328743767,-586.69754397,0.00029988,2]
[377307721,1754328743788,-586.69754397,0.00029988,2]
[377307722,1754328743811,-726.56869266,0.00029988,2]
[377307723,1754328743833,-586.69754397,0.00029988,2]
[377307724,1754328743857,-726.56869266,0.00029988,2]
[377307725,1754328743880,-586.69754397,0.00029988,2]
[377307726,1754328743904,-726.56869266,0.00029988,2]
[377307727,1754328743926,-586.69754397,0.00029988,2]
[377307728,1754328743948,-586.69754397,0.00029988,2]
[377307729,1754328743972,-726.56869266,0.00029988,2]
[377307730,1754328743998,-586.69754397,0.00029988,2]
[377307731,1754328744019,-586.69754397,0.00029988,2]
[377307732,1754328744042,-586.69754397,0.00029988,2]
[377307733,1754328744066,-726.56869266,0.00029988,2]
[377307734,1754328744087,-586.69754397,0.00029988,2]
[377307735,1754328744110,-726.56869266,0.00029988,2]
[377307736,1754328744133,-586.69754397,0.00029988,2]
[377307737,1754328744154,-586.69754397,0.00029988,2]
[377307738,1754328744179,-726.56869266,0.00029988,2]
[377307739,1754328744200,-586.69754397,0.00029988,2]
[377307740,1754328744225,-726.56869266,0.00029988,2]
[377307741,1754328744248,-586.69754397,0.00029988,2]
[377307742,1754328744272,-726.56869266,0.00029988,2]
[377307743,1754328744295,-586.69754397,0.00029988,2]
[377307744,1754328744320,-726.56869266,0.00029988,2]
[377307745,1754328744342,-586.69754397,0.00029988,2]
[377307746,1754328744363,-586.69754397,0.00029988,2]
[377307747,1754328744387,-586.69754397,0.00029988,2]
[377307748,1754328744410,-726.56869266,0.00029988,2]
[377307749,1754328744432,-586.69754397,0.00029988,2]
[377307750,1754328744456,-726.56869266,0.00029988,2]
[377307751,1754328744478,-586.69754397,0.00029988,2]
[377307752,1754328744499,-586.69754397,0.00029988,2]
[377307753,1754328744520,-586.69754397,0.00029988,2]
[377307754,1754328744540,-586.69754397,0.00029988,2]
[377307755,1754328744562,-586.69754397,0.00029988,2]
[377307756,1754328744583,-586.69754397,0.00029988,2]
[377307757,1754328744604,-586.69754397,0.00029988,2]
[377307758,1754328744626,-586.69754397,0.00029988,2]
[377307759,1754328744647,-586.69754397,0.00029988,2]
[377307760,1754328744669,-586.69754397,0.00029988,2]
[377307761,1754328744695,-586.69754397,0.00029988,2]
[377307762,1754328744716,-586.69754397,0.00029988,2]
[377307763,1754328744737,-586.69754397,0.00029988,2]
[377307764,1754328744759,-586.69754397,0.00029988,2]
[377307765,1754328744780,-586.69754397,0.00029988,2]
[377307766,1754328744818,-586.69754397,0.00029988,2]
[377307767,1754328744840,-586.69754397,0.00029988,2]
[377307768,1754328744863,-586.69754397,0.00029988,2]
[377307769,1754328744887,-586.69754397,0.00029988,2]
[377307770,1754328744910,-586.69754397,0.00029988,2]
[377307771,1754328744933,-586.69754397,0.00029988,2]
[377307772,1754328744957,-586.69754397,0.00029988,2]
[377307773,1754328744983,-586.69754397,0.00029988,2]
[377307774,1754328745006,-586.69754397,0.00029988,2]
[377307775,1754328745031,-586.69754397,0.00029988,2]
[377307776,1754328745053,-586.69754397,0.00029988,2]
[377307777,1754328745078,-586.69754397,0.00029988,2]
[377307778,1754328745101,-586.69754397,0.00029988,2]
[377307779,1754328745122,-500.0,0.00029988,2]
[377307780,1754328745149,-710.77372107,0.00029988,2]
[377307781,1754328745174,-710.77372107,0.00029988,2]
[377307782,1754328745198,-710.77372107,0.00029988,2]
[377307783,1754328745222,-710.77372107,0.00029988,2]
[377307784,1754328745246,-710.77372107,0.00029988,2]
[377307785,1754328745269,-710.77372107,0.00029988,2]
[377307786,1754328745292,-710.77372107,0.00029988,2]
[377307787,1754328745315,-710.77372107,0.00029988,2]
[377307788,1754328745338,-710.77372107,0.00029988,2]
[377307789,1754328745362,-710.77372107,0.00029988,2]
[377307790,1754328745387,-710.77372107,0.00029988,2]
[377307791,1754328745411,-710.77372107,0.00029988,2]
[377307792,1754328745433,-710.77372107,0.00029988,2]
[377307793,1754328745456,-710.77372107,0.00029988,2]
[377307794,1754328745479,-710.77372107,0.00029988,2]
[377307795,1754328745502,-710.77372107,0.00029988,2]
[377307796,1754328745525,-710.77372107,0.00029988,2]
[377307797,1754328745548,-710.77372107,0.00029988,2]
[377307798,1754328745572,-710.77372107,0.00029988,2]
[377307799,1754328745595,-710.77372107,0.00029988,2]
[377307800,1754328745618,-710.77372107,0.00029988,2]
[377307801,1754328745644,-710.77372107,0.00029988,2]
[377307802,1754328745667,-710.77372107,0.00029988,2]
[377307803,1754328745698,-575.21867899,0.00029988,2]
[377307804,1754328745722,-575.21867899,0.00029988,2]
[377307805,1754328745748,-575.21867899,0.00029988,2]
[377307806,1754328745772,-575.21867899,0.00029988,2]
[377307807,1754328745795,-575.21867899,0.00029988,2]
[377307808,1754328745819,-575.21867899,0.00029988,2]
[377307809,1754328745843,-575.21867899,0.00029988,2]
[377307810,1754328745865,-575.21867899,0.00029988,2]
[377307811,1754328745891,-575.21867899,0.00029988,2]
[377307812,1754328745913,-575.21867899,0.00029988,2]
[377307813,1754328745936,-575.21867899,0.00029988,2]
[377307814,1754328745959,-575.21867899,0.00029988,2]
[377307815,1754328745984,-556.52217954,0.00029988,2]
[377307816,1754328754115,-293.2893054,0.00029102,2]
[377307817,1754328756502,-217.14338621,0.00029102,2]
[377307818,1754328764702,160.0,0.0003027,30]
[377307819,1754328765245,-155.56730839,0.00029102,2]
[377307820,1754328765268,-1.75445739,0.00029678,2]
[377307821,1754328767941,-151.58342283,0.00029678,2]
[377307822,1754328772208,-168.82086242,0.00029678,2]
[377307823,1754328774941,286.35,0.00028699,30]
[377307824,1754328775324,286.35,0.00029216,30]
[377307825,1754328775733,286.35,0.00029734,30]
[377307826,1754328776503,-236.76288086,0.00029678,2]
[377307827,1754328790963,-373.23360262,0.00029678,2]
[377307828,1754328796743,-282.03506364,0.00029678,2]
[377307829,1754328799221,-189.96256117,0.00029678,2]
[377307830,1754328800799,-172.35598676,0.00029678,2]
[377307831,1754328804198,-170.99,0.00029678,2]
[377307832,1754328805703,-181.09982645,0.00029678,2]
[377307833,1754328807276,-171.95372777,0.00029678,2]
[377307834,1754328809954,-192.23389594,0.00029678,2]
[377307835,1754328813433,-251.4134941,0.00029678,2]
[377307836,1754328816802,-335.81237629,0.00029678,2]
[377307837,1754328819496,-460.0,0.00029678,2]
[377307838,1754328822123,-255.48667945,0.00029678,2]
[377307839,1754328823820,-190.73535732,0.00029678,2]
[377307840,1754328825899,-209.26464268,0.00029678,2]
[377307841,1754328829889,-152.0,0.00029678,2]
[377307842,1754328833683,-173.0630639,0.00029678,2]
[377307843,1754328836052,-298.6704313,0.00028831,2]
[377307844,1754328839185,-247.93067388,0.00028831,2]
[377307845,1754328843905,190.9,0.00028831,30]
[377307846,1754328844271,190.9,0.00029324,30]
[377307847,1754328844348,-278.60596327,0.00028,3]
[377307848,1754328844700,190.9,0.00029817,30]
[377307849,1754328849849,-152.06932612,0.00028,3]
[377307850,1754328851834,-96.56232988,0.00028,3]
[377307851,1754328851855,-179.83170685,0.0002883,2]
[377307852,1754328854319,-120.16829315,0.0002883,2]
[377307853,1754328854342,-226.43285665,0.00028831,2]
[377307854,1754328856319,-370.67820954,0.00028831,2]
[377307855,1754328860790,-297.89372316,0.00028831,2]
[377307856,1754328864524,-161.5587871,0.00028831,2]
[377307857,1754328866606,-167.69,0.00028831,2]
[377307858,1754328868276,-199.1146921,0.00028831,2]
[377307859,1754328869932,-273.781526,0.00028831,2]
[377307860,1754328871670,-278.29680352,0.00028831,2]
[377307861,1754328875970,-275.10402808,0.00028831,2]
[377307862,1754328881805,-193.47580359,0.00028831,2]
[377307863,1754328883935,-193.10734889,0.00028831,2]
[377307864,1754328885990,-294.12936614,0.00028831,2]
[377307865,1754328888648,-301.26132529,0.00028831,2]
[377307866,1754328892071,-308.89585036,0.00028831,2]
[377307867,1754328896122,-267.69345147,0.00028831,2]
[377307868,1754328900937,-240.0,0.00028831,2]
[377307869,1754328902476,-165.0808862,0.0002883,2]
[377307870,1754328906658,-225.25,0.00028561,2]
[377307871,1754328906682,-118.04730177,0.0002883,2]
[377307872,1754328909307,-16.87181203,0.0002883,2]
[377307873,1754328909329,-274.7128862,0.0002883,2]
[377307874,1754328916199,-25.2871138,0.0002883,2]
[377307875,1754328916221,-139.7937724,0.0002883,2]
[377307876,1754328918391,-160.2062276,0.0002883,2]
[377307877,1754328918416,-38.8945224,0.0002883,2]
[377307878,1754328921221,-203.82696039,0.00028204,2]
[377307879,1754328926003,-187.46445198,0.00028204,2]
[377307880,1754328929292,-235.73778896,0.00028204,2]
[377307881,1754328931884,-322.88729813,0.00028204,2]
[377307882,1754328936066,-206.54635379,0.00028204,2]
[377307883,1754328940413,-170.99,0.00028204,2]
[377307884,1754328941638,742.06144259,0.00026571,2]
[377307885,1754328942649,-159.58,0.00028204,2]
[377307886,1754328942687,1764.13144062,0.0003,120]
[377307887,1754328944319,-7.51683321,0.00028204,2]
[377307888,1754328944344,-459.92662165,0.00028631,2]
[377307889,1754328948494,-183.818179,0.00028631,2]
[377307890,1754328950636,-232.47341853,0.00028631,2]
[377307891,1754328954101,-389.26686351,0.00028631,2]
[377307892,1754328956152,-274.710321,0.00028631,2]
[377307893,1754328958398,-251.88179527,0.00028631,2]
[377307894,1754328958421,-48.11820473,0.0002883,2]
[377307895,1754328961004,-171.66073169,0.00028731,2]
[377307896,1754328961025,-60.66303801,0.00028748,2]
[377307897,1754328964672,-110.99769368,0.00028748,2]
[377307898,1754328964696,-95.01385188,0.00028766,2]
[377307899,1754328969029,-76.64687981,0.00028766,2]
[377307900,1754328969055,-99.33312019,0.00028783,2]
[377307901,1754328972011,-72.3276115,0.00028783,2]
[377307902,1754328972031,-80.4823885,0.000288,2]
[377307903,1754328973570,199.6,0.00028686,30]
[377307904,1754328973614,-91.17834319,0.000288,2]
[377307905,1754328973961,199.6,0.000292,30]
[377307906,1754328974344,199.6,0.00029714,30]
[377307907,1754328987627,1176.08762708,0.0003,120]
[377307908,1754329026854,160.0,0.0002,3]
[377307909,1754329032687,784.05841805,0.0003,120]
[377307910,1754329042663,-178.27608572,0.00027865,2]
[377307911,1754329045532,-23.82122628,0.00027865,2]
[377307912,1754329069498,-203.97573463,0.0002873,2]
[377307913,1754329077641,522.70561204,0.0003,120]
[377307914,1754329122593,348.47040802,0.0003,120]
[377307917,1754329167664,232.31360535,0.0003,120]
[377307918,1754329211033,-171.78957722,0.00027836,2]
[377307919,1754329212612,154.8757369,0.0003,120]
[377307920,1754329212993,-4061.0,0.00027836,2]
[377307921,1754329215640,-73.82853298,0.00027836,2]
[377307922,1754329223011,200.0,0.000294,120]
[377307923,1754329234984,376.08895,0.000294,120]
[377307924,1754329257488,154.8757369,0.0003,120]
[377307926,1754329273531,-162.74426207,0.00028047,2]
[377307927,1754329277370,-17.45573793,0.00028047,2]
[377307928,1754329277393,-161.54426207,0.00028204,2]
[377307929,1754329278074,150.0,0.00026489,30]
[377307930,1754329281667,-737.0,0.00028204,2]
[377307931,1754329303187,499.364404,0.00013699,2]
[377307932,1754329303428,499.364404,0.00020187,2]
[377307933,1754329304600,-182.03410144,0.00026676,2]
[377307934,1754329305642,174.446128,0.00027425,120]
[377307936,1754329310362,-193.20518902,0.00026676,2]
[377307937,1754329311967,-124.12511354,0.00026676,2]
[377307938,1754329352582,-9280.0,0.00027583,2]
[377307939,1754329353437,187.01,0.00028614,30]
[377307940,1754329353851,187.01,0.00029139,30]
[377307941,1754329354251,187.01,0.00029664,30]
[377307942,1754329356176,2300.0,0.00030276,30]
[377307943,1754329590705,150.0,0.00026489,30]
[377307948,1754329662880,2038.98896884,0.00026571,2]
[377307949,1754329662904,702.8552471,0.00026571,2]
[377307950,1754329668055,-316.20426408,0.00026715,2]
[377307951,1754329670142,-159.38161192,0.00026715,2]
[377307952,1754329674397,-300.0,0.00027537,2]
[377307953,1754329674418,-33670.0,0.00027538,2]
[377307954,1754329683794,189.72,0.00028668,30]
[377307955,1754329684186,189.72,0.00029187,30]
[377307956,1754329684582,189.72,0.00029707,30]
[377307958,1754329807784,600.0,0.00026571,2]
[377308049,1754329836915,-80.4573951,0.00027538,2]
[377308050,1754329836926,-93.4389941,0.00027583,2]
[377308051,1754329836936,-970.12118734,0.000279,2]
[377308052,1754329836946,-248.44531767,0.00028378,2]
[377308053,1754329836956,-2458.7642486,0.00028478,2]
[377308054,1754329836966,-1200.0,0.00028478,2]
[377308055,1754329836976,-1074.32918175,0.00028479,2]
[377308056,1754329836987,-309.45,0.00028568,10]
[377308057,1754329836997,-501.18916264,0.00028573,3]
[377308058,1754329837007,-330.35145823,0.00028573,5]
[377308059,1754329837018,-331.45467559,0.00028573,5]
[377308060,1754329837028,-500.0,0.00028573,5]
[377308061,1754329837039,-300.0,0.00028576,2]
[377308062,1754329837049,-300.0,0.00028576,2]
[377308063,1754329837060,-300.0,0.00028576,2]
[377308064,1754329837071,-500.0,0.00028577,2]
[377308065,1754329837083,-236.43815826,0.00028577,2]
[377308066,1754329837093,-272.00048222,0.00028577,2]
[377308067,1754329837103,-500.0,0.00028577,2]
[377308068,1754329837113,-500.0,0.00028577,2]
[377308069,1754329837123,-500.0,0.00028577,2]
[377308070,1754329837133,-500.0,0.00028577,2]
[377308071,1754329837143,-500.0,0.00028577,2]
[377308072,1754329837152,-500.0,0.00028577,2]
[377308073,1754329837162,-398.3977161,0.00028577,2]
[377308075,1754329837171,-500.0,0.00028577,2]
[377308076,1754329837181,-500.0,0.00028577,2]
[377308077,1754329837191,-379.66361863,0.00028577,2]
[377308078,1754329837200,-646.5486782,0.00028577,2]
[377308079,1754329837211,-594.98822857,0.00028577,2]
[377308080,1754329837221,-500.0,0.00028577,2]
[377308081,1754329837232,-500.0,0.00028577,2]
[377308082,1754329837241,-381.61406647,0.00028577,2]
[377308083,1754329837251,-451.39053811,0.00028577,2]
[377308084,1754329837261,-500.0,0.00028577,2]
[377308085,1754329837271,-500.0,0.00028577,2]
[377308086,1754329837281,-500.0,0.00028577,2]
[377308087,1754329837291,-500.0,0.00028577,2]
[377308088,1754329837301,-500.0,0.00028577,2]
[377308089,1754329837312,-500.0,0.00028577,2]
[377308090,1754329837331,-393.80278812,0.00028577,2]
[377308091,1754329837342,-500.0,0.00028577,2]
[377308092,1754329837353,-500.0,0.00028577,2]
[377308093,1754329837367,-500.0,0.00028577,2]
[377308094,1754329837377,-500.0,0.00028577,2]
[377308095,1754329837387,-500.0,0.00028577,2]
[377308096,1754329837403,-500.0,0.00028577,2]
[377308097,1754329837413,-500.0,0.00028577,2]
[377308098,1754329837423,-500.0,0.00028577,2]
[377308099,1754329837433,-500.0,0.00028577,2]
[377308100,1754329837443,-500.0,0.00028577,2]
[377308101,1754329837453,-500.0,0.00028577,2]
[377308102,1754329837463,-500.0,0.00028577,2]
[377308103,1754329837473,-500.0,0.00028577,2]
[377308104,1754329837483,-500.0,0.00028577,2]
[377308105,1754329837493,-500.0,0.00028577,2]
[377308106,1754329837503,-500.0,0.00028577,2]
[377308107,1754329837512,-500.0,0.00028577,2]
[377308108,1754329837523,-500.0,0.00028577,2]
[377308109,1754329837532,-500.0,0.00028577,2]
[377308110,1754329837542,-500.0,0.00028577,2]
[377308111,1754329837552,-500.0,0.00028577,2]
[377308112,1754329837562,-500.0,0.00028577,2]
[377308113,1754329837572,-595.46831337,0.00028577,2]
[377308114,1754329837581,-500.0,0.00028577,2]
[377308115,1754329837591,-500.0,0.00028577,2]
[377308116,1754329837601,-500.0,0.00028577,2]
[377308117,1754329837611,-500.0,0.00028577,2]
[377308118,1754329837620,-500.0,0.00028577,2]
[377308119,1754329837630,-500.0,0.00028577,2]
[377308120,1754329837639,-500.0,0.00028577,2]
[377308121,1754329837649,-500.0,0.00028577,2]
[377308122,1754329837658,-1200.0,0.00028577,2]
[377308123,1754329837668,-500.0,0.00028578,2]
[377308124,1754329837677,-500.0,0.00028578,2]
[377308126,1754329837687,-241.91430274,0.00028578,2]
[377308128,1754329837696,-50000.0,0.00028579,2]
[377308129,1754329837706,-6170.02446949,0.00028579,2]
[377308130,1754329837715,-205.20527596,0.0002873,2]
[377308131,1754329837725,-151.13993583,0.00028802,2]
[377308132,1754329837734,-25147.5168366,0.00028808,2]
[377308133,1754329837744,-2602.38,0.0002881,3]
[377308134,1754329837753,-1301.19,0.0002881,3]
[377308135,1754329837763,-650.59,0.0002881,3]
[377308136,1754329837773,-162.65,0.0002881,3]
[377308137,1754329837782,-487.96,0.0002881,3]
[377308138,1754329837792,-174.092,0.00028819,21]
[377308139,1754329837801,-1074.32918175,0.0002882,2]
[377308140,1754329837812,-25147.5168366,0.00028821,2]
[377308141,1754329837823,-20304.28512293,0.00028831,2]
[377308142,1754329837833,-500.0,0.00028852,2]
[377308143,1754329837842,-500.0,0.00028873,5]
[377308144,1754329837853,-565.9898197,0.00028873,5]
[377308145,1754329837862,-500.0,0.00028873,5]
[377308146,1754329837872,-500.0,0.00028873,5]
[377308147,1754329837881,-500.0,0.00028873,5]
[377308148,1754329837891,-500.0,0.00028873,5]
[377308149,1754329837900,-164.81617259,0.00028873,5]
[377308150,1754329837909,-500.0,0.00028873,5]
[377308152,1754329837919,-325.3,0.0002889,3]
[377308153,1754329837929,-4829.85299159,0.000289,20]
[377308154,1754329837939,-341.0,0.00028955,2]
[377308155,1754329837949,-343.297,0.00028955,2]
[377308156,1754329837959,-291.585,0.00028955,2]
[377308157,1754329837968,-154.87573691,0.0002909,2]
[377308159,1754329837978,-1000.0,0.00029121,5]
[377308161,1754329837988,-500.0,0.00029125,2]
[377308162,1754329837998,-233.7962561,0.00029127,2]
[377308163,1754329838008,-1074.32918175,0.00029161,2]
[377308164,1754329838017,-4829.85299156,0.00029279,20]
[377308166,1754329838026,-500.0,0.00029399,2]
[377308167,1754329838037,-1025.25878385,0.00029421,5]
[377308168,1754329838046,-518.70284719,0.00029421,5]
[377308169,1754329838056,-538.63950387,0.00029421,5]
[377308170,1754329838066,-632.57237053,0.00029421,5]
[377308171,1754329838076,-325.99076981,0.00029477,2]
[377308172,1754329838085,-1074.32918175,0.00029502,2]
[377308173,1754329838095,-280.5224831,0.00029649,2]
[377308174,1754329838104,-4829.85299156,0.00029659,21]
[377308176,1754329838114,-250.0,0.00029666,2]
[377308177,1754329838123,-1004.35785339,0.00029668,5]
[377308179,1754329838133,-500.0,0.00029673,2]
[377308181,1754329838142,-303.20190824,0.00029737,2]
[377308183,1754329838151,-6964.63623813,0.00029779,2]
[377308185,1754329838161,-1074.32918175,0.00029843,2]
[377308186,1754329838171,-25147.5168366,0.00029858,2]
[377308188,1754329838180,-497.79159648,0.00029873,5]
[377308190,1754329838190,-500.0,0.00029873,5]
[377308192,1754329838199,-245.58015541,0.00029873,5]
[377308194,1754329838209,-500.0,0.00029873,5]
[377308196,1754329838218,-500.0,0.00029873,5]
[377308198,1754329838228,-500.0,0.00029873,5]
[377308199,1754329838237,-500.0,0.00029873,5]
[377308202,1754329838247,-500.0,0.00029873,5]
[377308204,1754329838256,-500.0,0.00029873,5]
[377308205,1754329838266,-503.05608999,0.00029873,5]
[377308207,1754329838276,-500.0,0.00029873,5]
[377308209,1754329838286,-216.47973337,0.00029873,5]
[377308211,1754329838295,-500.0,0.00029873,5]
[377308212,1754329838305,-500.0,0.00029873,5]
[377308213,1754329838316,-500.0,0.00029873,5]
[377308214,1754329838330,-162.02452595,0.00029873,5]
[377308215,1754329838340,-645.72373991,0.00029873,5]
[377308217,1754329838350,-500.0,0.00029873,5]
[377308219,1754329838359,-500.0,0.00029873,5]
[377308221,1754329838369,-500.0,0.00029873,5]
[377308223,1754329838379,-500.0,0.00029873,5]
[377308225,1754329838388,-500.0,0.00029873,5]
[377308227,1754329838399,-500.0,0.00029873,5]
[377308228,1754329838408,-500.0,0.00029873,5]
[377308229,1754329838418,-500.0,0.00029873,5]
[377308230,1754329838428,-500.0,0.00029873,5]
[377308232,1754329838438,-500.0,0.00029873,5]
[377308234,1754329838447,-176032.617856,0.00029879,2]
[377308236,1754329838457,-200.0,0.00029879,10]
[377308238,1754329838467,-200.0,0.00029879,10]
[377308240,1754329838476,-200.0,0.00029879,10]
[377308242,1754329838486,-200.0,0.00029879,10]
[377308244,1754329838495,-200.0,0.00029879,10]
[377308246,1754329838506,-262.579659,0.00029879,10]
[377308248,1754329838516,-370000.0,0.00029889,2]
[377308249,1754329838526,-160.0,0.00029951,2]
[377308250,1754329838535,-6964.63623811,0.00029977,2]
[377308252,1754329838545,-1000.0,0.0003,2]
[377308254,1754329838555,-1000.0,0.0003,2]
[377308256,1754329838564,-1000.0,0.0003,2]
[377308258,1754329838574,-1000.0,0.0003,2]
[377308260,1754329838584,-1000.0,0.0003,2]
[377308262,1754329838593,-1000.0,0.0003,2]
[377308264,1754329838602,-1000.0,0.0003,2]
[377308266,1754329838611,-1000.0,0.0003,2]
[377308268,1754329838621,-1000.0,0.0003,2]
[377308270,1754329838630,-1000.0,0.0003,2]
[377308271,1754329838640,-1000.0,0.0003,2]
[377308272,1754329838651,-1000.0,0.0003,2]
[377308273,1754329838660,-1000.0,0.0003,2]
[377308274,1754329838670,-1000.0,0.0003,2]
[377308275,1754329838679,-1000.0,0.0003,2]
[377308276,1754329838689,-1000.0,0.0003,2]
[377308277,1754329838699,-1000.0,0.0003,2]
[377308278,1754329838709,-1000.0,0.0003,2]
[377308279,1754329838718,-1000.0,0.0003,2]
[377308280,1754329838728,-1000.0,0.0003,2]
[377308281,1754329838738,-1000.0,0.0003,2]
[377308282,1754329838747,-1000.0,0.0003,2]
[377308283,1754329838758,-1000.0,0.0003,2]
[377308284,1754329838886,-1000.0,0.0003,2]
[377308285,1754329838897,-1000.0,0.0003,2]
[377308286,1754329838907,-1000.0,0.0003,2]
[377308287,1754329838916,-1000.0,0.0003,2]
[377308288,1754329838926,-1000.0,0.0003,2]
[377308289,1754329838935,-1000.0,0.0003,2]
[377308290,1754329838945,-1000.0,0.0003,2]
[377308291,1754329838955,-1000.0,0.0003,2]
[377308292,1754329838964,-1000.0,0.0003,2]
[377308293,1754329838974,-160.0,0.00030033,2]
[377308294,1754329838983,-4829.85299156,0.00030038,22]
[377308295,1754329838994,-1000.0,0.0003005,2]
[377308296,1754329839004,-1000.0,0.0003005,2]
[377308297,1754329839013,-1000.0,0.0003005,2]
[377308298,1754329839022,-1000.0,0.0003005,2]
[377308299,1754329839032,-1000.0,0.0003005,2]
[377308300,1754329839041,-1000.0,0.0003005,2]
[377308301,1754329839051,-1000.0,0.0003005,2]
[377308302,1754329839060,-1000.0,0.00030051,2]
[377308303,1754329839071,-1000.0,0.00030051,2]
[377308304,1754329839081,-1000.0,0.00030052,2]
[377308305,1754329839090,-1000.0,0.00030052,2]
[377308306,1754329839100,-1000.0,0.00030052,2]
[377308307,1754329839109,-1000.0,0.00030052,2]
[377308308,1754329839120,-796.88,0.00030052,2]
[377308309,1754329839131,-5468.64429835,0.00030073,2]
[377308310,1754329839141,-1000.0,0.000301,2]
[377308311,1754329839151,-400.0,0.00030137,120]
[377308312,1754329839161,-920.0,0.00030147,2]
[377308313,1754329839171,-417.26318586,0.00030172,2]
[377308314,1754329839180,-1667.38369069,0.00030172,2]
[377308315,1754329839190,-689.45034604,0.00030172,2]
[377308316,1754329839200,-2755.04358278,0.00030172,2]
[377308317,1754329839209,-1744.94836562,0.00030172,2]